Workbook

Sheet Planilha orçamentária (hidden)
A1: Ministério da Integração Nacional | C1: Edital: Tomada de Preços 046/2013
A2: CODEVASF | C2: Data da abertura: 06/12/2013
A3: Município: Ubaí/MG | C3: Data Base : Setembro 2013
A4: Licitante: Biotec Engenharia Ltda. | C4: BDI Serviço: | D4: ='BDI-serviços'!D29 -> 0.2019 | E4: %
A5: CNPJ: 04.717.646/0001-45 | C5: BDI Fornec: | D5: ='[1]BDI-FORNECIMENTO'!D28 -> 18 | E5: %
A6: Planilha Orçamentária
A7: ITEM | B7: DISCRIMINAÇÃO | C7: SICRO/CPU | D7: UNI. | E7: QUANT. | F7: VALOR UNIT. | G7: VALOR TOTAL
A9: 1 | B9: SERVIÇOS PRELIMINARES | G9: =SUM(G10:G13) -> 70412.16
A10: 1.1 | B10: MOBILIZAÇÃO E DESMOBILIZAÇÃO | C10: CPU | D10: GL | E10: 1 | F10: =CPU!I33 -> 15436.0017 | G10: =ROUND(E10*F10,2) -> 15436
A11: 1.2 | B11: INSTALAÇÃO DO CANTEIRO DE OBRAS | C11: CPU | D11: M² | E11: =10*10 -> 100 | F11: =CPU!I102 -> 207.4917239 | G11: =ROUND(E11*F11,2) -> 20749.17
A12: 1.3 | B12: ADMINISTRAÇÃO LOCAL E MANUTENÇÃO DO CANTEIRO DE OBRAS | C12: CPU | D12: GL | E12: 1 | F12: =CPU!I130 -> 32691.19924 | G12: =ROUND(E12*F12,2) -> 32691.2
A13: 1.4 | B13: FORNECIMENTO E INSTALAÇÃO DE PLACA DE IDENTIFICAÇÃO DA OBRA (3,0 x 1,5 m) | C13: CPU | D13: M² | E13: =3*2 -> 6 | F13: =CPU!I158 -> 255.9656383 | G13: =ROUND(E13*F13,2) -> 1535.79
A15: 2 | B15: TERRAPLENAGEM | G15: =SUM(G16:G16) -> 669.66
A16: 2.1 | B16: LOCAÇÃO DA OBRA | C16: CPU | D16: M | E16: =140+423+47+89 -> 699 | F16: =CPU!I234 -> 0.9580215807 | G16: =ROUND(E16*F16,2) -> 669.66
A18: 3 | B18: PAVIMENTAÇÃO | G18: =SUM(G19:G32) -> 142630.24
A19: 3.1 | B19: REGULARIZAÇÃO DO SUBLEITO COM PROCTOR INTERMEDIÁRIO | C19: 5 S 02 110 00 | D19: M² | E19: =E16*K37 -> 4893 | F19: =CPU!I264 -> 0.697102 | G19: =ROUND(E19*F19,2) -> 3410.92 | I19: =E19/7 -> 699 | J19: m
A20: 3.2 | B20: BASE EM SOLO ESTABILIZADO GRANULOMETRICAMENTE SEM MISTURA | C20: 2 S 02 200 01 | D20: M³ | E20: =E16*K34*J34 -> 733.95 | F20: =CPU!I296 -> 9.098383 | G20: 6677.76 | I20: Capa | J20: 0.03 | K20: 7 | L20: 2.4
A21: 3.3 | B21: TRANSPORTE LOCAL COM BASCULANTE, 5 M3 | C21: 1 A 00 001 05 | D21: T.KM | E21: =E20*L34*J35 -> 42275.52 | F21: =CPU!I320 -> 0.637007 | G21: 26929.8 | I21: Transp | J21: 80
A22: 3.4 | B22: EXECUÇÃO DE IMPRIMAÇÃO COM MATERIAL BETUMINOSO, INCLUINDO TRANSPORTE DO MATERIAL DO CANTEIRO ATÉ A OBRA | C22: 3 S 02 300 00 | D22: M² | E22: =E19 -> 4893 | F22: =CPU!I349 -> 0.192304 | G22: 940.94 | I22: CAP | J22: 0.055
A23: 3.5 | B23: FORNECIMENTO DE MATERIAL BETUMINOSO - ASFALTO DILUÍDO CM 30 | C23: ANP + 18% | D23: T | E23: =E22*J30 -> 5.8716 | F23: =1475.37*1.18 -> 1740.9366 | G23: 10222.08 | I23: Transp | J23: 600
A24: 3.6 | B24: TRANSPORTE DE MATERIAIS ASFÁLTICOS ACIMA DE 50 KM | C24: DER-PB | D24: T.KM | E24: =E23*J32 -> 3522.96 | F24: =CPU!I373 -> 0.288456 | G24: 1016.22 | I24: Filler | J24: 0.028 | L24: 1.7
A25: 3.7 | B25: EXECUÇÃO DE PINTURA DE LIGAÇÃO COM MATERIAL BETUMINOSO, INCLUINDO TRANSPORTE DO MATERIAL DO CANTEIRO ATÉ A OBRA | C25: 3 S 02 400 00 | D25: M² | E25: =E22 -> 4893 | F25: =CPU!I402 -> 0.420665 | G25: 2058.31 | I25: Areia | J25: 0.08 | L25: 1.6
A26: 3.8 | B26: FORNECIMENTO DE MATERIAL BETUMINOSO - EMULSÃO ASFÁLTICA RR-1C | C26: ANP + 18% | D26: T | E26: =E25*J28 -> 1.9572 | F26: =636.41*1.18 -> 750.9638 | G26: 1469.79 | I26: Brita | J26: 0.837 | L26: 1.3
A27: 3.9 | B27: TRANSPORTE DE MATERIAIS ASFÁLTICOS | C27: DER-PB | D27: T.KM | E27: =E26*J23 -> 1174.32 | F27: =F24 -> 0.288456 | G27: 338.74 | I27: Transp | J27: 160
A28: 3.10 | B28: EXECUÇÃO DE CONCRETO BETUMINOSO USINADO A QUENTE (CBUQ) COM MATERIAL BETUMINOSO, ESPESSURA 2,50 cm, INCLUINDO TRANSPORTE DO MATERIAL BETUMINOSO DO CANTEIRO DE OBRAS ATÉ AS FRENTES DE SERVIÇO. | C28: 2 S 02 540 01 | D28: T | E28: =E25*J20*L20 -> 352.296 | F28: =CPU!I434 -> 76.07093524 | G28: 26799.49 | I28: Pintura | J28: 0.0004 | K28: =K20 -> 7
A29: 3.11 | B29: TRANSPORTE DE AGREGADOS (AREIA/BRITA/FILLER), DMT ACIMA DE 50 KM | C29: 1 A 00 002 91 | D29: T.KM | E29: =(E28*J24*L24+E28*L25*J25+E28*L26+J26)*J27 -> 83309.59642 | F29: =CPU!I458 -> 0.336532 | G29: 28036.35 | I29: Transp | J29: 600
A30: 3.12 | B30: FORNECIMENTO DE MATERIAL BETUMINOSO (CAP-50/70) | C30: ANP + 18% | D30: T | E30: =E28*J22 -> 19.37628 | F30: 1095.68 | G30: 21230.2 | I30: Imprimação | J30: 0.0012 | K30: =K28 -> 7
A31: 3.13 | B31: TRANSPORTE DE MATERIAIS ASFÁLTICOS | C31: DER-PB | D31: T.KM | E31: =E30*J23 -> 11625.768 | F31: =F24 -> 0.288456 | G31: =ROUND(E31*F31,2) -> 3353.52
A32: 3.14 | B32: TRANSPORTE DE MATERIAIS ASFÁLTICOS (CBUQ), DA USINA ATÉ A PISTA | C32: DER-PB | D32: T.KM | E32: =E28*J21 -> 28183.68 | F32: =CPU!I482 -> 0.36 | G32: 10146.12 | I32: Transp | J32: 600
A34: 4 | B34: DRENAGEM | G34: =SUM(G35) -> 111249.76 | I34: Base | J34: 0.15 | K34: 7 | L34: 1.8
A35: 4.1 | B35: MEIO-FIO E SARJETA DE CONCRETO MOLDADO NO LOCAL, USINADO 15 MPA, COM 0,15 M BASE X 0,30 M ALTURA, REJUNTE EM ARGAMASSA TRACO 1:3,5 (CIMENTO E AREIA) | C35: 73763/002 | D35: M | E35: =E16*2 -> 1398 | F35: =CPU!I507 -> 79.577799 | G35: =ROUND(E35*F35,2) -> 111249.76 | I35: Transp | J35: 32
A37: 5 | B37: SERVIÇOS COMPLEMENTARES | G37: =SUM(G38:G40) -> 6780.66 | I37: Regularização | K37: 7
A38: 5.1 | B38: PLACA DE SINALIZAÇÃO DE PARE EM CHAPA, FIXADO EM TUBO DE FERRO PRETO 2", CHAPA 14, CONCRETADO | C38: COTAÇÃO | D38: UND | E38: 8 | F38: =CPU!I543 -> 166.4110677 | G38: =ROUND(E38*F38,2) -> 1331.29 | I38: Subleito | J38: 0 | K38: =2*3/2*J38/2+K37 -> 7
A39: 5.2 | B39: PINTURA A BASE DE BORRACHA CLORADA (FAIXA DE PEDRESTRES) | C39: 79465 | D39: M² | E39: 64.8 | F39: =CPU!I577 -> 20.22346988 | G39: =ROUND(E39*F39,2) -> 1310.48 | I39: Escavação
A40: 5.3 | B40: RAMPA PARA ACESSO DE DEFICIENTES EM CONCRETO SIMPLES, FCK 25 Mpa, DESEMPENADO, COM PINTURA INDICATIVA 02 DEMÃOS | C40: URB-RAM-005 | D40: UND | E40: 20 | F40: =CPU!I604 -> 206.9447445 | G40: =ROUND(E40*F40,2) -> 4138.89 | I40: Transp | J40: 30
A41: TOTAL | G41: =G9+G15+G18+G34+G37 -> 331742.48
G43: =G41/E19 -> 67.79940323

Sheet Cronog. Físico-Financ
A1: Ministério da Integração Nacional | F1: Edital:
A2: CODEVASF | F2: Contrato:
A3: Município: Janauba/MG | F3: Data Base : Novembro 2016
A4: Licitante: | F4: BDI Serviço: | G4: 0.25
A5: CNPJ: | F5: BDI Fornec:
A6: Cronograma Físico-Financeiro
A7: CRONOGRAMA FÍSICO
A8: ÍTEM | B8: DESCRIÇÃO DO SERVIÇO | C8: VALOR | D8: % | E8: MÊS 01 | F8: MÊS 02 | G8: MÊS 03 | H8: MÊS 04 | I8: MÊS 05 | J8: TOTAL
A9: 1. | B9: SERVIÇOS PRELIMINARES | C9: 22597.07 | D9: =C9/$C$15 -> 0.1850283486 | E9: 0.43 | F9: 0.05 | G9: 0.05 | H9: 0.05 | I9: 0.42 | J9: =SUM(E9:I9) -> 1
A10: 2.0 | B10: ESCAVAÇÃO E PREPARO DA FUNDAÇÃO COM ESTACAS DE AÇO | C10: 3266 | D10: 0.02674251957 | E10: 1 | J10: =SUM(E10:I10) -> 1
A11: 2.2 | B11: ESTRUTURA DE CONCRETO | C11: 35165.97 | D11: 0.2879444705 | E11: 0.5 | F11: 0.5 | J11: =SUM(E11:I11) -> 1
A12: 2.3 | B12: FORNECIMENTO DE ESTACAS PARA FUNDAÇÃO | C12: 35610.57 | D12: 0.291584925 | F12: 0.5 | G12: 0.5 | J12: 1
A13: 2.4 | B13: LIMPEZA FINAL | C13: 488 | D13: 0.003995820437 | I13: 1 | J13: 1
A14: 2.5 | B14: CALHA PARSHALL | C14: 25000 | D14: 0.2047039158 | H14: 0.5 | I14: 0.5 | J14: 1
B15: TOTAIS | C15: =SUM(C9:C14) -> 122127.61 | D15: =SUM(D9:D14) -> 1 | J15: =SUM(E15:I15) -> 0
A17: CRONOGRAMA FINANCEIRO
A18: ÍTEM | B18: DESCRIÇÃO DO SERVIÇO | C18: VALOR | D18: % | E18: MÊS 01 | F18: MÊS 02 | G18: MÊS 03 | H18: MÊS 04 | I18: MÊS 05 | J18: TOTAL
A19: 1. | B19: SERVIÇOS PRELIMINARES | C19: 22597.07 | D19: =C19/$C$15 -> 0.1850283486 | E19: =C19*0.43 -> 9716.7401 | F19: =C19*0.05 -> 1129.8535 | G19: =C19*0.05 -> 1129.8535 | H19: =C19*0.05 -> 1129.8535 | I19: =C19*0.42 -> 9490.7694 | J19: =SUM(E19:I19) -> 22597.07
A20: 2.0 | B20: ESCAVAÇÃO E PREPARO DA FUNDAÇÃO COM ESTACAS DE AÇO | C20: 3266 | D20: 0.02674251957 | E20: =C20*1 -> 3266 | J20: =SUM(E20:I20) -> 3266
A21: 2.2 | B21: ESTRUTURA DE CONCRETO | C21: 35165.97 | D21: 0.2879444705 | E21: =C21*0.5 -> 17582.985 | F21: =C21*0.5 -> 17582.985 | J21: =SUM(E21:I21) -> 35165.97
A22: 2.3 | B22: FORNECIMENTO DE ESTACAS PARA FUNDAÇÃO | C22: 35610.57 | D22: 0.291584925 | F22: =C22*0.5 -> 17805.285 | G22: =C22*0.5 -> 17805.285 | J22: 35610.57
A23: 2.4 | B23: LIMPEZA FINAL | C23: 488 | D23: 0.003995820437 | I23: =C23*1 -> 488 | J23: 488
A24: 2.5 | B24: CALHA PARSHALL | C24: 25000 | D24: 0.2047039158 | H24: =C24*0.5 -> 12500 | I24: =C24*0.5 -> 12500 | J24: 25000
B25: TOTAIS | C25: =SUM(C19:C24) -> 122127.61 | D25: 1 | E25: 30565.7251 | F25: 36518.1235 | G25: 18935.1385 | H25: 13629.8535 | I25: 22478.7694 | J25: 122127.61

Sheet CPU (hidden)
A1: Ministério da Integração Nacional | D1: Edital: Tomada de Preços 046/2013
A2: CODEVASF | D2: Data da abertura: 06/12/2013
A3: Município: Ubaí/MG | D3: Data Base : Setembro 2013
A4: Licitante: Biotec Engenharia Ltda. | D4: BDI Serviço: | F4: ='BDI-serviços'!D29 -> 0.2019
A5: CNPJ: 04.717.646/0001-45 | D5: BDI Fornec: | F5: ='BDI-fornecimento'!D33/100 -> 0.18
A6: Composição de Preço Unitário dos Serviços
A7: CÓDIGO | B7: SERVIÇO: Mobilização e Desmobilização | C7: ESPECIFICAÇÃO | H7: UNIDADE
A8: 1.1 | H8: VB
A10: EQUIPAMENTO
A11: DISCRIMINAÇÃO | C11: UNIDADE | D11: QUANT. | E11: PROD | F11: IMPROD | G11: P.UNIT. PROD | H11: P.UNIT. IMPR | I11: P.TOTAL
A12: Cavalo c/ carreta 3 eixos - 246 KW | C12: h | D12: 50 | E12: 1 | G12: 113.92 | H12: 16.79 | I12: =D12*E12*G12+D12*F12*H12 -> 5696
A13: Caminhão basculante, capacidade para 5,0 m³ (inclusive motorista) - VOLKSWAGEN VW-13.150 T | C13: h | D13: 40 | E13: 1 | G13: 85.14 | H13: 0 | I13: =D13*E13*G13+D13*F13*H13 -> 3405.6
A14: Caminhão carroceria fixa | C14: h | D14: 20 | E14: 1 | G14: 87.07 | H14: 0 | I14: =D14*E14*G14+D14*F14*H14 -> 1741.4
A15: SUB-TOTAL | I15: =SUM(I12:I14) -> 10843
A16: MATERIAL
A17: DISCRIMINAÇÃO | C17: UNIDADE | D17: QUANT. | H17: P.UNIT. | I17: P.TOTAL
A18: Passagem de ônibus | C18: unid. | D18: 40 | H18: 50 | I18: =D18*H18 -> 2000
I19: =D19*H19 -> 0
A20: SUB-TOTAL | I20: =SUM(I18:I19) -> 2000
A21: SERVIÇOS - COMPOSIÇÕES AUXILIARES
A22: DISCRIMINAÇÃO | C22: UNIDADE | D22: QUANT. | H22: P.UNIT. | I22: P.TOTAL
I23: =D23*H23 -> 0
A24: SUB-TOTAL | I24: =SUM(I23:I23) -> 0
A25: MÃO DE OBRA
A26: DISCRIMINAÇÃO | C26: UNIDADE | D26: QUANT. | H26: P.UNIT. | I26: P.TOTAL
I27: =D27*H27 -> 0
I28: =D28*H28 -> 0
A29: SUB-TOTAL | I29: =SUM(I27:I28) -> 0
A30: PRODUÇÃO DA EQUIPE | C30: 1 | D30: CUSTO | I30: =I29+I24+I20+I15 -> 12843
A31: TOTAL | I31: =I30/C30 -> 12843
A32: BDI (%) | C32: ='BDI-serviços'!$D$29 -> 0.2019 | I32: =I31*'BDI-serviços'!D29 -> 2593.0017
A33: TOTAL DO SERVIÇO - R$ | I33: =SUM(I31:I32) -> 15436.0017
A35: CÓDIGO | B35: SERVIÇO: Instalação completa de Canteiro de obra | C35: ESPECIFICAÇÃO | H35: UNIDADE
A36: 1.2 | H36: M2
A38: DISCRIMINAÇÃO | C38: UNIDADE | D38: QUANT. | H38: P.UNIT. | I38: P.TOTAL
A39: Chapa madeira compensada resinada 2,2 X 1,1m X 10mm p/ forma de concreto | C39: u | D39: 40 | H39: 20.9 | I39: =D39*H39 -> 836
A40: Prego de aço 18x30 | C40: kg | D40: 2 | H40: 6.79 | I40: 13.58
A41: Pontalete de madeira lei 8x8 cm | C41: m | D41: 40 | H41: 12.95 | I41: 518
A42: Sarrafo de madeira de lei larg. 2,5 x 10cm | C42: m | D42: 25 | H42: 6.28 | I42: 157
A43: Telha (fibrocimento) ondulada - dimensões: (1,83 X 1,10) m, esp. 6 mm. | C43: u | D43: 25 | H43: 23 | I43: 575
A44: Conjunto de fixação e vedação para telhas de fibrocimento (parafuso, arruela elástica e metálica) | C44: cj | D44: 50 | H44: 0.872 | I44: 43.6
A45: Vaso sanitário sifonado louça branca - padrão popular | C45: u | D45: 4 | H45: 95.1 | I45: 380.4
A46: Caixa descarga plástica, externa, completa com tubo de descarga, engate flexível, bóia e suporte para fixação - capacidade 9L | C46: u | D46: 4 | H46: 22 | I46: 88
A47: Dobradiça aço zincado 3 x 3" sem anéis | C47: u | D47: 18 | H47: 5.93 | I47: 106.74
A48: Cadeado de 25mm | C48: pç | D48: 5 | H48: 9.89 | I48: 49.45
A49: Cimento | C49: kg | D49: 750 | H49: 0.39 | I49: 292.5
A50: Areia Lavada | C50: m3 | D50: 5 | H50: 70 | I50: 350
A51: Brita 1 | C51: m3 | D51: 2 | H51: 57.98 | I51: 115.96
A52: Tubo PVC soldável EB-892 p/ água fria predial DN 20mm | C52: m | D52: 24 | H52: 1.48 | I52: 35.52
A53: Tubo PVC para esgoto predial DN 100mm | C53: m | D53: 18 | H53: 7.75 | I53: 139.5
A54: Tubo PVC classe A, ponta e bolsa, para esgoto predial, diâmetro 40mm, fabricado conforme NBR 5688 da ABNT | C54: m | D54: 6 | H54: 2.68 | I54: 16.08
A55: Tubo PVC classe A, ponta e bolsa, para esg predial, DN 50mm, fabricado conforme NBR 5688 da ABNT | C55: m | D55: 15 | H55: 5.07 | I55: 76.05
A56: Lavatório louça branca com coluna medindo 45 x 55cm ou equiv - padrão médio | C56: u | D56: 4 | H56: 92.09 | I56: 368.36
A57: Tanque de louça branca suspenso - 18L ou equiv | C57: u | D57: 1 | H57: 147.34 | I57: 147.34
A58: Torneira plástico 1/2" p/ lavatório | C58: u | D58: 12 | H58: 6.58 | I58: 78.96
A59: Caixa em fibrocimento redonda c/ tampa - 500L | C59: u | D59: 1 | H59: 118.6 | I59: 118.6
A60: Joelho PVC sold 90° p/ água fria predial DN 20mm | C60: u | D60: 20 | H60: 0.33 | I60: 6.6
A61: Joelho PVC sold /rosca 90° p/ água fria predial DN 20mm x 1/2" | C61: u | D61: 12 | H61: 0.92 | I61: 11.04
A62: Joelho PVC sold 90° PB p/ esg predial DN 100mm | C62: u | D62: 10 | H62: 4.85 | I62: 48.5
A63: Joelho PVC sold 90° PB p/ esg predial DN 50mm | C63: u | D63: 8 | H63: 1.46 | I63: 11.68
A64: Joelho PVC sold 90° BB p/ esg predial DN 40mm | C64: u | D64: 8 | H64: 0.96 | I64: 7.68
A65: Adesivo para tubo plástico | C65: u | D65: 0.4 | H65: 24.56 | I65: 9.824
A66: Te PVC sold 90° p/ água fria predial 20mm | C66: u | D66: 8 | H66: 0.56 | I66: 4.48
A67: Adaptador PVC soldável c/ flanges e anel de vedação p/ caixa d´água 20mm x 1/2" | C67: u | D67: 1 | H67: 0.46 | I67: 0.46
A68: Tê sanitário PVC p/ esgoto predial, ponta, bolsa e bolsa (PBB), com anel de borracha , DN 100 X 100mm | C68: u | D68: 4 | H68: 9.52 | I68: 38.08
A69: Te sanitário PVC p/ esg predial DN 50x 50mm | C69: u | D69: 4 | H69: 3.75 | I69: 15
A70: Torneira de bóia real 1/2" c/ balão plástico | C70: u | D70: 1 | H70: 12.28 | I70: 12.28
A71: Válvula em plástico branco 1'' s/ unho (p/ pia, tanque ou lavat sem ladrão) | C71: u | D71: 5 | H71: 1.99 | I71: 9.95
A72: Sifão plástico p/ lavatório/pia tipo copo 40mm | C72: u | D72: 5 | H72: 7.3 | I72: 36.5
A73: Tijolo cerâmico furado 8 furos 10 x 20 x 30cm | C73: mil | D73: 0.35 | H73: 480 | I73: 168
A74: Caixa sifonada PVC com grelha quadrada branca (150x150x50)mm | C74: u | D74: 4 | H74: 19 | I74: 76
A75: Cabo de cobre isolamento anti-chama 450/750V 16mm², flexível, tp Foresplast Alcoa ou equiv | C75: m | D75: 90 | H75: 8 | I75: 720
A76: Cabo de cobre isolamento anti-chama 450/750V 2,5mm², flexível, tp Foresplast Alcoa ou equiv | C76: m | D76: 300 | H76: 1.59 | I76: 477 | L76: =I102 -> 207.4917239
A77: Poste aço H=2,5m D=75mm tipo XR-701/1 Xoulux OU TPD-236/1 Trópico | C77: u | D77: 1 | H77: 201.11 | I77: 201.11
A78: Chuveiro elétrico comum plástico tp Ducha 110/220V | C78: u | D78: 4 | H78: 24.17 | I78: 96.68
A79: Kit cavalete PVC c/ registro de esfera 1/2" | C79: u | D79: 1 | H79: 62.47 | I79: 62.47
A80: Braço ou haste c/ canopla metal cromado 1/2" p/ chuveiro simples | C80: u | D80: 4 | H80: 11.37 | I80: 45.48
A81: Cinta (braçadeira) de aço galvanizado com parafusos para pontalete e poste, diâmetro 102 mm | C81: u | D81: 1 | H81: 10.74888889 | I81: 10.74888889
A82: Caixa tipo CM-2 (CEMIG) polifásica, para medição e disjuntor - 46 x 35 x 21 cm | C82: u | D82: 1 | H82: 96.74 | I82: 96.74
A83: Tomada embutir 2P universal redonda 10A/250V c/ placa, tipo Silentoque Pial ou equiv | C83: u | D83: 20 | H83: 4.92 | I83: 98.4
A84: Conjunto embutir 1 interruptor simples, 1 interruptor paralelo 10A/250V c/ placa, tp Silentoque Pial ou equiv | C84: u | D84: 10 | H84: 9.1 | I84: 91
A85: Soquete p/ lâmpada incandescente (E-27) em PVC c/ rabicho 10A, 250V | C85: u | D85: 15 | H85: 2.21 | I85: 33.15
A86: Lâmpada incandescente 60W | C86: u | D86: 15 | H86: 0.67 | I86: 10.05
A87: Tinta latex PVA | C87: l | D87: 50 | H87: 16 | I87: 800
A88: Registro de pressão simples, acabamento bruto, fabricado em bronze, classe de pressão 150 PSI, com cruzeta lisa e rosca interna e externa, diâmetro 3/4" Ref 1400 | C88: u | D88: 6 | H88: 28.75 | I88: 172.5
A89: SUB-TOTAL | I89: =SUM(I39:I88) -> 7878.042889
A90: SERVIÇOS - COMPOSIÇÕES AUXILIARES
A91: DISCRIMINAÇÃO | C91: UNIDADE | D91: QUANT. | H91: P.UNIT. | I91: P.TOTAL
I92: =D92*H92 -> 0
A93: SUB-TOTAL | I93: =SUM(I92:I92) -> 0
A94: MÃO DE OBRA
A95: DISCRIMINAÇÃO | C95: UNIDADE | D95: QUANT. | H95: P.UNIT. | I95: P.TOTAL
A96: Pedreiro | C96: h | D96: 320 | H96: 8.78 | I96: =D96*H96 -> 2809.6
A97: Servente | C97: h | D97: 960 | H97: 6.85 | I97: =D97*H97 -> 6576
A98: SUB-TOTAL | I98: =SUM(I96:I97) -> 9385.6
A99: PRODUÇÃO DA EQUIPE | C99: 100 | D99: CUSTO | I99: =I89+I98 -> 17263.64289
A100: TOTAL | I100: =I99/C99 -> 172.6364289
A101: BDI (%) | C101: ='BDI-serviços'!$D$29 -> 0.2019 | I101: =I100*C101 -> 34.85529499
A102: TOTAL DO SERVIÇO - R$ | I102: =SUM(I100:I101) -> 207.4917239
A104: CÓDIGO | B104: SERVIÇO: Administração local e manutenção do canteiro | C104: ESPECIFICAÇÃO | H104: UNIDADE
A105: 1.3 | H105: GL
A107: EQUIPAMENTO
A108: DISCRIMINAÇÃO | C108: UNIDADE | D108: QUANT. | E108: PROD | F108: IMPROD | G108: P.UNIT. PROD | H108: P.UNIT. IMPR | I108: P.TOTAL
I109: =D109*E109*G109+D109*F109*H109 -> 0
A110: SUB-TOTAL | I110: =SUM(I109:I109) -> 0
A111: MATERIAL
A112: DISCRIMINAÇÃO | C112: UNIDADE | D112: QUANT. | H112: P.UNIT. | I112: P.TOTAL
A113: Telefone | C113: gl | D113: 1 | H113: 100 | I113: =D113*H113 -> 100
A114: Energia elétrica | C114: gl | D114: 1 | H114: 200 | I114: 200
A115: Água e esgoto | C115: gl | D115: 1 | H115: 100 | I115: 100
A116: EPI | C116: gl | D116: 1 | H116: 250 | I116: 250
A117: SUB-TOTAL | I117: =SUM(I113:I116) -> 650
A118: SERVIÇOS - COMPOSIÇÕES AUXILIARES
A119: DISCRIMINAÇÃO | C119: UNIDADE | D119: QUANT. | H119: P.UNIT. | I119: P.TOTAL
I120: =D120*H120 -> 0
A121: SUB-TOTAL | I121: =SUM(I120:I120) -> 0
A122: MÃO DE OBRA
A123: DISCRIMINAÇÃO | C123: UNIDADE | D123: QUANT. | H123: P.UNIT. | I123: P.TOTAL
A124: Engenheiro Residente | C124: mês | D124: 1 | H124: 12722.6 | I124: =D124*H124 -> 12722.6
A125: Mestre de obra | C125: mês | D125: 1 | H125: 13827 | I125: =D125*H125 -> 13827
A126: SUB-TOTAL | I126: =SUM(I124:I125) -> 26549.6
A127: PRODUÇÃO DA EQUIPE | C127: 1 | D127: CUSTO | I127: =I126+I121+I117+I110 -> 27199.6
A128: TOTAL | I128: =I127/C127 -> 27199.6
A129: BDI (%) | C129: ='BDI-serviços'!$D$29 -> 0.2019 | I129: =I128*'BDI-serviços'!D29 -> 5491.59924
A130: TOTAL DO SERVIÇO - R$ | I130: =SUM(I128:I129) -> 32691.19924
A132: CÓDIGO | B132: SERVIÇO: Placa de identificação de obra - Fornecimento e instalação | C132: ESPECIFICAÇÃO | H132: UNIDADE
A133: 1.4 | H133: M2
A135: EQUIPAMENTO
A136: DISCRIMINAÇÃO | C136: UNIDADE | D136: QUANT. | E136: PROD | F136: IMPROD | G136: P.UNIT. PROD | H136: P.UNIT. IMPR | I136: P.TOTAL
I137: =D137*E137*G137+D137*F137*H137 -> 0
A138: SUB-TOTAL | I138: =SUM(I137:I137) -> 0
A139: MATERIAL
A140: DISCRIMINAÇÃO | C140: UNIDADE | D140: QUANT. | H140: P.UNIT. | I140: P.TOTAL
A141: Placa de identificação de obras, conforme Lay-out normatizado | C141: m2 | D141: 1 | H141: 168 | I141: =D141*H141 -> 168
A142: Pontalete de madeira de lei 8X8 cm | C142: m | D142: 1 | H142: 12.95 | I142: =D142*H142 -> 12.95
A143: Pontalete de madeira de lei 6X6 cm | C143: m | D143: 4 | H143: 1.76 | I143: =D143*H143 -> 7.04
A144: Prego 18x30 | C144: kg | D144: 0.11 | H144: 6.79 | I144: =D144*H144 -> 0.7469
A145: SUB-TOTAL | I145: =SUM(I141:I144) -> 188.7369
A146: SERVIÇOS - COMPOSIÇÕES AUXILIARES
A147: DISCRIMINAÇÃO | C147: UNIDADE | D147: QUANT. | H147: P.UNIT. | I147: P.TOTAL
A148: Concreto 1:8, em Vol, prep manual | C148: m3 | D148: 0.01 | H148: 5.06 | I148: =D148*H148 -> 0.0506
A149: SUB-TOTAL | I149: =SUM(I148:I148) -> 0.0506
A150: MÃO DE OBRA
A151: DISCRIMINAÇÃO | C151: UNIDADE | D151: QUANT. | H151: P.UNIT. | I151: P.TOTAL
A152: Pedreiro | C152: h | D152: 1 | H152: 10.48 | I152: =D152*H152 -> 10.48
A153: Servente | C153: h | D153: 2 | H153: 6.85 | I153: =D153*H153 -> 13.7
A154: SUB-TOTAL | I154: =SUM(I152:I153) -> 24.18
A155: PRODUÇÃO DA EQUIPE | C155: 1 | D155: CUSTO | I155: =I154+I149+I145+I138 -> 212.9675
A156: TOTAL - R$ | I156: =I155/C155 -> 212.9675
A157: BDI (%) | C157: ='BDI-serviços'!$D$29 -> 0.2019 | I157: =I156*'BDI-serviços'!D29 -> 42.99813825
A158: TOTAL DO SERVIÇO - R$ | I158: =SUM(I156:I157) -> 255.9656383
A160: CÓDIGO | B160: SERVIÇO: Varrição e bota fora de material | C160: ESPECIFICAÇÃO | H160: UNIDADE
A161: Auxiliar | H161: M2
A162: EQUIPAMENTO
A163: DISCRIMINAÇÃO | C163: UNIDADE | D163: QUANT. | E163: PROD | F163: IMPROD | G163: P.UNIT. PROD | H163: P.UNIT. IMPR | I163: P.TOTAL
A164: Vassoura mecânica rebocável - CMV : VM 2440 | C164: h | D164: 1 | E164: 1 | G164: 4.37 | I164: =D164*E164*G164+D164*F164*H164 -> 4.37
A165: SUB-TOTAL | I165: =SUM(I164:I164) -> 4.37
A166: MATERIAL
A167: DISCRIMINAÇÃO | C167: UNIDADE | D167: QUANT. | H167: P.UNIT. | I167: P.TOTAL
I168: =D168*H168 -> 0
I169: =D169*H169 -> 0
I170: =D170*H170 -> 0
I171: =D171*H171 -> 0
A172: SUB-TOTAL | I172: =SUM(I168:I171) -> 0
A173: SERVIÇOS - COMPOSIÇÕES AUXILIARES
A174: DISCRIMINAÇÃO | C174: UNIDADE | D174: QUANT. | H174: P.UNIT. | I174: P.TOTAL
I175: =D175*H175 -> 0
A176: SUB-TOTAL | I176: =SUM(I175:I175) -> 0
A177: MÃO DE OBRA
A178: DISCRIMINAÇÃO | C178: UNIDADE | D178: QUANT. | H178: P.UNIT. | I178: P.TOTAL
A179: Servente | C179: h | D179: 0.1 | H179: 6.85 | I179: =D179*H179 -> 0.685
A180: SUB-TOTAL | I180: =SUM(I179:I179) -> 0.685
A181: PRODUÇÃO DA EQUIPE | C181: 90 | D181: CUSTO | I181: =I180+I176+I172+I165 -> 5.055
A182: TOTAL - R$ | I182: =I181/C181 -> 0.05616666667
A183: BDI (%) | C183: ='BDI-serviços'!$D$29 -> 0.2019 | I183: =C183*I182 -> 0.01134005
A184: TOTAL DO SERVIÇO - R$ | I184: =SUM(I182:I183) -> 0.06750671667
A186: CÓDIGO | B186: SERVIÇO: Espalhamento de solo em bota fora | C186: ESPECIFICAÇÃO | H186: UNIDADE
A187: Auxiliar | H187: M3
A188: EQUIPAMENTO
A189: DISCRIMINAÇÃO | C189: UNIDADE | D189: QUANT. | E189: PROD | F189: IMPROD | G189: P.UNIT. PROD | H189: P.UNIT. IMPR | I189: P.TOTAL
A190: Trator de esteira CATERPILLAR D6R XL-163-6A-N, motor diesel potência de 140 a 170 HP - E002 | C190: h | D190: 1 | E190: 1 | F190: 0 | G190: 160.19 | H190: 11.51 | I190: =D190*E190*G190+D190*F190*H190 -> 160.19
A191: SUB-TOTAL | I191: =SUM(I190:I190) -> 160.19
A192: MATERIAL
A193: DISCRIMINAÇÃO | C193: UNIDADE | D193: QUANT. | H193: P.UNIT. | I193: P.TOTAL
I194: =D194*H194 -> 0
A195: SUB-TOTAL | I195: =SUM(I194:I194) -> 0
A196: SERVIÇOS - COMPOSIÇÕES AUXILIARES
A197: DISCRIMINAÇÃO | C197: UNIDADE | D197: QUANT. | H197: P.UNIT. | I197: P.TOTAL
I198: =D198*H198 -> 0
A199: SUB-TOTAL | I199: =SUM(I198:I198) -> 0
A200: MÃO DE OBRA
A201: DISCRIMINAÇÃO | C201: UNIDADE | D201: QUANT. | H201: P.UNIT. | I201: P.TOTAL
I202: =D202*H202 -> 0
A203: SUB-TOTAL | I203: =SUM(I202:I202) -> 0
A204: PRODUÇÃO DA EQUIPE | C204: 210 | D204: CUSTO | I204: =I203+I199+I195+I191 -> 160.19
A205: TOTAL - R$ | I205: =I204/C204 -> 0.7628095238
A206: BDI (%) | C206: ='BDI-serviços'!$D$29 -> 0.2019 | I206: =C206*I205 -> 0.1540112429
A207: TOTAL DO SERVIÇO - R$ | I207: =SUM(I205:I206) -> 0.9168207667
A209: CÓDIGO | B209: SERVIÇO: Locação da obra | C209: ESPECIFICAÇÃO | H209: UNIDADE
A210: 2.1 | H210: M
... 444 more rows

Sheet Fornecimento de material betumi (hidden)
A1: Ministério da Integração Nacional | D1: Edital: Tomada de Preços 046/2013
A2: CODEVASF | D2: Data da abertura: 06/12/2013
A3: Município: Ubaí/MG | D3: Data Base : Setembro 2013
A4: Licitante: Biotec Engenharia Ltda. | D4: BDI Serviço: | E4: ='BDI-serviços'!D29 -> 0.2019
A5: CNPJ: 04.717.646/0001-45 | D5: BDI Fornec: | E5: ='BDI-fornecimento'!D33/100 -> 0.18
A6: Fornecimento de Materiais Betuminosos
A7: Item | B7: Material Betuminoso | C7: Unidade | D7: Valor ANP (R$) | E7: B.D.I (18,00 %) | F7: Preço (R$)
A8: 1. | B8: Asfalto diluído CM-30 | C8: ton | D8: 1475.37 | E8: =0.18*D8 -> 265.5666 | F8: =SUM(D8:E8) -> 1740.9366
A9: 2. | B9: Emulsão asfáltica RR-1C | C9: ton | D9: 636.41 | E9: =0.18*D9 -> 114.5538 | F9: =SUM(D9:E9) -> 750.9638
A10: 3. | B10: Concreto asfáltico de Petróleo - CAP 50/70 | C10: ton | D10: 928.54 | E10: 167.1372 | F10: 1095.6772

Sheet BDI-serviços (hidden)
A1: Ministério da Integração Nacional
A2: CODEVASF
A3: Município: Ubaí/MG
A4: Licitante: Biotec Engenharia Ltda.
A5: CNPJ: 04.717.646/0001-45
A6: Edital: Tomada de Preços 046/2013
A7: Data da abertura: 06/12/2013
A8: Data Base : Setembro 2013
A9: BDI Serviço: | B9: =D29 -> 0.2019
A10: BDI Fornec: | B10: ='BDI-fornecimento'!D33/100 -> 0.18
A11: Composição do BDI de serviços
A12: Item | B12: Composição | C12: % PV | D12: % CD
A13: 1 | B13: Administração Central | D13: =SUM(D14:D16) -> 0.045
A14: 1.1 | B14: Escritório Central | D14: 0.015
A15: 1.2 | B15: Viagens | D15: 0.01
A16: 1.3 | B16: Outros | D16: 0.02
A17: 2 | B17: Impostos e taxas | C17: =SUM(C18:C20) -> 0.0865 | D17: =SUM(D18:D20) -> 0.0865
A18: 2.1 | B18: ISS | C18: 0.05 | D18: 0.05
A19: 2.2 | B19: PIS | C19: 0.0065 | D19: 0.0065
A20: 2.3 | B20: COFINS | C20: 0.03 | D20: 0.03
A21: 3 | B21: Taxa de Risco | D21: =SUM(D22:D24) -> 0.0094
A22: 3.1 | B22: Seguro | D22: 0.0024
A23: 3.2 | B23: Risco | D23: 0.002
A24: 3.3 | B24: Garantia | D24: 0.005
A25: 4 | B25: Despesas Financeiras | D25: =SUM(D26:D27) -> 0.011
A26: 4.1 | B26: Juros | D26: 0.003
A27: 4.2 | B27: Outros | D27: 0.008
A28: 5 | B28: Lucro | D28: 0.05
B29: BDI CALCULADO (%) | D29: =D13+D17+D21+D25+D28 -> 0.2019

Sheet BDI-fornecimento (hidden)
A1: Ministério da Integração Nacional
A2: CODEVASF
A3: Município: Ubaí/MG
A4: Licitante: Biotec Engenharia Ltda.
A5: CNPJ: 04.717.646/0001-45
A6: Edital: Tomada de Preços 046/2013
A7: Data da abertura: 06/12/2013
A8: Data Base : Setembro 2013
A9: BDI Serviço: | B9: ='BDI-serviços'!D29 -> 0.2019
A10: BDI Fornec: | B10: =D33/100 -> 0.18
A11: Composição do BDI de fornecimento
A12: Item | B12: Descrição dos Serviços | C12: % PV | D12: % CD
A14: 1 | B14: ADMINISTRAÇÃO CENTRAL | D14: 5.85
A15: 1.1 | B15: ESCRITÓRIO CENTRAL
A16: 1.2 | B16: VIAGENS
A17: 1.3 | B17: OUTROS
A19: 2 | B19: IMPOSTOS E TAXAS | C19: =SUM(C20:C22) -> 3.65 | D19: =ROUND(SUM(D20:D22),2) -> 3.65
A20: 2.1 | B20: ISS | C20: 0
A21: 2.2 | B21: PIS | C21: 0.65 | D21: =ROUND(C21*(1+($B$39/100)),2) -> 0.65
A22: 2.3 | B22: Cofins | C22: 3 | D22: =ROUND(C22*(1+($B$39/100)),2) -> 3
A24: 3 | B24: TAXA DE RISCO | D24: =SUM(D25:D28) -> 0.87
A25: 3.1 | B25: SEGURO | D25: 0.24
A26: 3.2 | B26: RISCO | D26: 0.21
A27: 3.3 | B27: GARANTIA | D27: 0.42
A29: 4 | B29: DESPESAS FINANCEIRAS | D29: 0.5
A31: 5 | B31: LUCRO | D31: 6
A33: B.D.I. CALCULADO (%) | D33: =ROUND((((1+(D14+D24)/100)*(1+D29/100)*(1+D31/100)/(1-C19/100)-1)*100),2) -> 18

Sheet Escala de mão de obra (hidden)
A1: Ministério da Integração Nacional | C1: Edital: Tomada de Preços 046/2013
A2: CODEVASF | C2: Data da abertura: 06/12/2013
A3: Município: Ubaí/MG | C3: Data Base : Setembro 2013
A4: Licitante: Biotec Engenharia Ltda. | C4: CNPJ: 04.717.646/0001-45
A5: Escala Salarial de Mão de obra
A7: 1. Horista
A8: CATEGORIA PROFISSIONAL | B8: SALÁRIO HORA (R$) | C8: ENCARGOS SOCIAIS | D8: SALÁRIO HORA + ENCARGOS (R$)
A9: Auxilar de topografia | B9: 2.083 | C9: =B9*'encargos sociais - HORISTAS'!$B$24 -> 2.6654068 | D9: =B9+C9 -> 4.7484068
A10: Encarregado de pavimentação | B10: 14.835 | C10: =B10*'encargos sociais - HORISTAS'!$B$24 -> 18.982866 | D10: 33.817866
A11: Encarregado de turma | B11: 10.28 | C11: =B11*'encargos sociais - HORISTAS'!$B$24 -> 13.154288 | D11: 23.434288
A12: Montador | B12: 3.72 | C12: =B12*'encargos sociais - HORISTAS'!$B$24 -> 4.760112 | D12: 8.480112
A13: Nivelador | B13: 2.85 | C13: =B13*'encargos sociais - HORISTAS'!$B$24 -> 3.64686 | D13: 6.49686
A14: Operador de equipamento especial | B14: 7.277 | C14: =B14*'encargos sociais - HORISTAS'!$B$24 -> 9.3116492 | D14: 16.5886492
A15: Pedreiro | B15: 3.72 | C15: =B15*'encargos sociais - HORISTAS'!$B$24 -> 4.760112 | D15: 8.480112
A16: Pintor | B16: 3.72 | C16: =B16*'encargos sociais - HORISTAS'!$B$24 -> 4.760112 | D16: 8.480112
A17: Pré-marcador | B17: 3.72 | C17: =B17*'encargos sociais - HORISTAS'!$B$24 -> 4.760112 | D17: 8.480112
A18: Serralheiro | B18: 3.72 | C18: =B18*'encargos sociais - HORISTAS'!$B$24 -> 4.760112 | D18: 8.480112
A19: Servente | B19: 3.005 | C19: =B19*'encargos sociais - HORISTAS'!$B$24 -> 3.845198 | D19: 6.850198
A20: Topógrafo | B20: 6.246 | C20: =B20*'encargos sociais - HORISTAS'!$B$24 -> 7.9923816 | D20: 14.2383816
A22: 2. Mensalista
A23: CATEGORIA PROFISSIONAL | B23: SALÁRIO HORA (R$) | C23: ENCARGOS SOCIAIS | D23: SALÁRIO HORA + ENCARGOS (R$)
A24: Engenheiro Residente | B24: 7177.77 | C24: =B24*'encargos sociais - MENSALISTA'!$D$34 -> 5544.827325 | D24: =SUM(B24:C24) -> 12722.59733
A25: Mestre de obra | B25: 7800.844 | C25: =B25*'encargos sociais - MENSALISTA'!$D$34 -> 6026.15199 | D25: =SUM(B25:C25) -> 13826.99599

Sheet encargos sociais - HORISTAS (hidden)
A1: Ministério da Integração Nacional | G1: Edital: Tomada de Preços 046/2013
A2: CODEVASF | G2: Data da abertura: 06/12/2013
A3: Município: Ubaí/MG | G3: Data Base : Setembro 2013
A4: Licitante: Biotec Engenharia Ltda. | G4: CNPJ: 04.717.646/0001-45
A5: Encargos sociais Horistas
A6: Grupo 01
A7: TIPO HORA | B7: INSS | C7: FGTS | D7: SESI | E7: SENAI | F7: INCRA | G7: SAL. EDUC. | H7: S. A .T | I7: SEBRAE | J7: TOTAL
B8: 20 | C8: 8 | D8: 1.5 | E8: 1 | F8: 0.2 | G8: 2.5 | H8: 3 | I8: 0.6 | J8: =SUM(A8:I8) -> 36.8
A10: Grupo 02
A11: TIPO HORA | B11: REP. SEM. REM. | C11: FERIADOS | D11: DIAS DE CHUVA E FALTAS J. | E11: AUXIL. DOENÇA | F11: 13º SALÁRIO | G11: LIC. PATERNID. | H11: TOTAL
B12: 19.9 | C12: 3 | D12: 4.57 | E12: 0.79 | F12: 10.57 | G12: 0.34 | H12: =SUM(B12:G12) -> 39.17
A14: Grupo 03
A15: TIPO HORA | B15: FÉRIAS | C15: ADICIONAL DE DISPENSA SEM JUSTA CAUSA - MULTA SOBRE FGTS | D15: AVISO PRÉVIO INDENIZADO | E15: TOTAL
B16: 14.06 | C16: 5.57 | D16: 13.12 | E16: =SUM(B16:D16) -> 32.75
A18: Grupo 04
A19: TIPO HORA | B19: GRUPO 01 INCIDINDO NO GRUPO 02 | C19: GRUPO 01 INCIDINDO NO AVISO PRÉVIO | D19: TOTAL
B20: 14.41 | C20: 4.83 | D20: =SUM(B20:C20) -> 19.24
A22: Total
A23: TIPO HORA | B23: TOTAL
B24: =(J8+H12+E16+D20)/100 -> 1.2796

Sheet encargos sociais - MENSALISTA (hidden)
A1: Ministério da Integração Nacional | C1: Edital: Tomada de Preços 046/2013
A2: CODEVASF | C2: Data da abertura: 06/12/2013
A3: Município: Ubaí/MG | C3: Data Base : Setembro 2013
A4: Licitante: Biotec Engenharia Ltda. | C4: CNPJ: 04.717.646/0001-45
A5: Encargos sociais Mensalista
A7: A- | B7: Encargos Sociais Básicos
A8: A1- | B8: Seconci | D8: =F8 -> 0 | F8: 0
A9: A2- | B9: INSS | D9: 0.2
A10: A3- | B10: FGTS | D10: 0.08
A11: A4- | B11: Incra | D11: 0.002
A12: A5- | B12: Salário Educação | D12: 0.025
A13: A6- | B13: Sebrae | D13: 0.006
A14: A7- | B14: Seguro contra acidente | D14: 0.03
A15: A8- | B15: Senai | D15: 0.01
A16: A9- | B16: Sesi | D16: 0.015
B17: Total | D17: =ROUND(SUM(D8:D16),4) -> 0.368 | E17: A
A19: B- | B19: Encargos Sociais Que Recebem Incidências de A
A20: B1- | B20: 13º Salário | D20: =ROUND(D39/D41,4) -> 0.0822
B21: Total | D21: =ROUND(SUM(D20:D20),4) -> 0.0822 | E21: B
A23: C- | B23: Encargos Que Não Recebem Incidências Globais de A
A24: C1- | B24: Depósito por despedida injusta | D24: =ROUND(0.5*(D10+(D10*D21)),4) -> 0.0433
A25: C2- | B25: Férias | D25: =ROUND(1.33*(D39/D41),4) -> 0.1093
A26: C3- | B26: Aviso prévio | D26: =ROUND(D39/(D41/12*G26),4) -> 0.102 | F26: TP = | G26: 9.67
B27: Total | D27: =ROUND(SUM(D24:D26),4) -> 0.2546 | E27: C
A29: D- | B29: Taxa de Reincidência
A30: D1- | B30: Reincidência de A sobre B | C30: A% x B% | D30: =ROUND(D17*0.0822,4) -> 0.0302 | F30: =D17*D21 -> 0.0302496
A31: D2- | B31: Reincidência de A sobre C3 | C31: A% x C3% | D31: =ROUND((D17-D8)*0.102,4) -> 0.0375 | F31: =D17*D26 -> 0.037536
B32: Total | D32: =ROUND(SUM(D30:D31),4) -> 0.0677 | E32: D | F32: =F30+F31 -> 0.0677856
B34: TOTAL DOS ENCARGOS | D34: =ROUND(D17+D21+D27+D32,4) -> 0.7725
A38: Relação de variáveis:
A39: V1 | B39: Jornada mensal de trabalho: | D39: 220
A40: V2 | B40: Jornada diária de trabalho: 220/30 | C40: 220/30 | D40: =ROUND(220/30,4) -> 7.3333
A41: V3 | B41: Total de horas anuais: | C41: 365*7,3333 | D41: =365*D40 -> 2676.6545
A42: TP | B42: Tempo de permanência do funcionário na obra, em meses.
A44: Cálculos:
A45: B1- | B45: V1/V3
A46: C1- | B46: 50%x(FGTS+(FGTSxB))
A47: C2- | B47: 1,33xV1/V3
A48: C3- | B48: V1/(V3/12xTP)
